bitfinex/quotes_ETHUSD_20230116
["timestamp","ask_amount","ask_price","bid_price","bid_amount"]
[1673885367635,2.14833154,1549.0,1548.7,0.066]
[1673885367884,1.9866,1548.9,1548.5,6.45765]
[1673885368112,1.9866,1548.9,1548.5,6.52365]
[1673885368586,10.44294,1548.9,1548.5,6.52365]
[1673885368833,1.044294,1548.8,1548.5,0.066]
[1673885369164,1.044294,1548.8,1548.4,18.96924999]
[1673885370056,7.500974,1548.8,1548.4,6.52594999]
[1673885370434,7.500974,1548.8,1548.4,0.06799999]
[1673885370435,2.0,1548.5,1548.4,0.06799999]
[1673885370598,2.0,1548.5,1548.4,0.00199999]
[1673885370599,1.4431,1548.5,1548.4,0.00199999]
[1673885370787,1.9278,1548.5,1548.4,0.00199999]
[1673885370994,3.9278,1548.5,1548.4,0.00199999]
[1673885371431,3.9298,1548.5,1548.4,0.00199999]
[1673885371637,3.9278,1548.5,1548.4,0.00199999]
[1673885371909,0.4847,1548.5,1548.4,0.00199999]
[1673885372048,0.066,1548.7,1548.4,2.05999999]
[1673885372267,0.066,1548.8,1548.5,1.488]
[1673885372495,0.04791543,1549.1,1548.6,6.45744]
[1673885372496,28.93302543,1549.1,1548.6,6.45744]
[1673885372840,14.19322905,1549.1,1548.6,6.52344]
[1673885373003,0.4845,1549.0,1548.6,6.52344]
[1673885373212,2.4845,1549.0,1548.6,6.52344]
[1673885374171,5.75728678,1549.0,1548.6,0.066]
[1673885374380,4.77478678,1548.9,1548.5,0.066]
[1673885374713,1.502,1548.7,1548.4,0.00199999]
[1673885374929,3.502,1548.7,1548.4,0.00199999]
[1673885375351,2.4847,1548.6,1548.4,0.00199999]
[1673885375849,15.39972,1548.6,1548.4,0.00199999]
[1673885376044,11.550614,1548.6,1548.4,0.00199999]
[1673885376255,0.066,1548.6,1548.4,6.46025999]
[1673885376459,29.13681,1548.9,1548.4,19.44279999]
[1673885376906,0.4846,1548.8,1548.4,19.44279999]
[1673885377358,3.488,1548.7,1548.4,0.06799999]
[1673885377530,3.488,1548.7,1548.4,0.00199999]
[1673885377531,6.45744,1548.6,1548.4,0.00199999]
[1673885377740,6.52344,1548.6,1548.4,0.00199999]
[1673885378040,2.0,1548.5,1548.4,0.00199999]
[1673885378831,15.46558,1548.6,1548.4,0.00199999]
[1673885378832,9.00814,1548.6,1548.4,0.00199999]
[1673885379195,7.00814,1548.6,1548.4,0.00199999]
[1673885380793,2.0,1548.5,1548.4,0.00199999]
[1673885380915,2.5507,1548.6,1548.4,0.00199999]
[1673885381000,2.4847,1548.6,1548.4,0.00199999]
[1673885381334,2.0,1548.6,1548.4,0.00199999]
[1673885381719,9.00772,1548.7,1548.4,0.00199999]
[1673885381720,0.5506,1548.7,1548.4,0.00199999]
[1673885382048,0.4846,1548.7,1548.4,12.91601521]
[1673885382244,0.4846,1548.7,1548.4,12.98201521]
[1673885382458,2.4846,1548.7,1548.4,12.98201521]
[1673885383013,17.997361,1548.7,1548.4,0.066]
[1673885383251,17.997361,1548.7,1548.3,6.45836]
[1673885383252,18.063361,1548.7,1548.3,6.52436]
[1673885383439,18.063361,1548.7,1548.3,0.066]
[1673885383612,18.063361,1548.7,1548.2,12.98361]
[1673885383941,24.520381,1548.7,1548.2,12.98385]
[1673885384910,16.063361,1548.7,1548.2,12.98385]
[1673885385123,2.0486,1548.7,1548.2,19.44296]
[1673885385454,0.4846,1548.7,1548.2,19.44296]
[1673885385813,0.066,1548.8,1548.3,4.77478678]
[1673885386071,28.51624,1548.9,1548.3,4.77478678]
[1673885386072,35.03865,1548.9,1548.4,19.37412]
[1673885386233,35.03865,1548.9,1548.4,19.44012]
[1673885386234,39.337517,1548.9,1548.4,19.44012]
[1673885386446,45.793927,1548.9,1548.4,19.44012]
[1673885386694,8.45671,1548.8,1548.4,19.44012]
[1673885386863,21.43603,1548.8,1548.4,0.066]
[1673885387072,0.4846,1548.7,1548.3,12.98336]
[1673885387400,6.94179,1548.7,1548.3,12.98336]
[1673885387642,7.00779,1548.7,1548.3,12.98336]
[1673885388074,7.00779,1548.7,1548.3,19.44205]
[1673885388075,0.5506,1548.7,1548.3,19.44205]
[1673885388238,0.4846,1548.7,1548.3,19.44205]
[1673885389022,13.46404,1548.8,1548.3,19.44205]
[1673885390141,13.46404,1548.8,1548.3,20.93912628]
[1673885390366,13.46404,1548.8,1548.3,19.44612628]
[1673885390706,0.066,1548.8,1548.4,3.98748678]
[1673885390920,21.5751,1548.9,1548.5,19.37331]
[1673885390921,21.6411,1548.9,1548.5,19.37331]
[1673885391065,14.0502,1548.9,1548.5,19.43931]
[1673885391281,14.0502,1548.9,1548.5,19.43731]
[1673885391624,0.066,1548.9,1548.7,12.91404]
[1673885391815,0.4845,1549.0,1548.7,12.98004]
[1673885393008,6.9403,1549.0,1548.7,0.066]
[1673885393240,13.4621,1549.0,1548.6,12.98038]
[1673885393436,7.0063,1549.0,1548.7,7.755048]
[1673885393592,7.0063,1549.0,1548.7,7.821048]
[1673885394134,15.46207,1549.0,1548.7,1.364038]
[1673885394388,15.46207,1549.0,1548.6,12.98038]
[1673885394536,13.46207,1549.0,1548.6,12.98038]
[1673885394746,7.00627,1549.0,1548.6,19.43782]
[1673885396185,0.066,1549.0,1548.6,19.43782]
[1673885396390,0.11391543,1549.1,1548.7,3.0]
[1673885396393,0.04791543,1549.1,1548.8,13.21304]
[1673885396397,0.04791543,1549.1,1548.8,13.27904]
[1673885396847,0.04791543,1549.1,1548.8,19.73565]
[1673885397846,0.04791543,1549.1,1548.8,23.00843678]
[1673885398059,0.04791543,1549.1,1549.0,12.91154]
[1673885398217,0.04791543,1549.1,1549.0,12.97754]
[1673885398630,0.04791543,1549.1,1549.0,0.066]
[1673885398950,0.04791543,1549.1,1548.9,15.9778]
[1673885399160,0.04791543,1549.1,1548.9,9.52184]
[1673885400662,0.04791543,1549.1,1548.9,15.97803]
[1673885400903,0.04791543,1549.1,1548.9,0.066]
[1673885401041,0.04791543,1549.1,1548.8,6.52241]
[1673885401259,6.50327543,1549.1,1548.8,0.066]
[1673885401512,6.56927543,1549.1,1548.7,25.4574]
[1673885401723,0.11391543,1549.1,1548.8,22.36974]
[1673885401937,0.04791543,1549.1,1548.8,22.43574]
[1673885402302,0.04791543,1549.1,1548.8,23.93374]
[1673885403567,0.04791543,1549.1,1548.8,22.43574]
[1673885404002,6.50327543,1549.1,1548.8,3.066]
[1673885404232,6.56927543,1549.1,1548.8,3.0]
[1673885404511,0.11391543,1549.1,1548.8,9.4566]
[1673885404721,0.04791543,1549.1,1548.8,9.5226]
[1673885404991,0.04791543,1549.1,1548.8,22.92042]
[1673885405484,0.04791543,1549.1,1548.8,22.43582]
[1673885405908,0.04791543,1549.1,1548.8,9.5226]
[1673885406976,0.04791543,1549.1,1548.8,22.43582]
[1673885410031,0.04791543,1549.1,1548.8,22.43245767]
[1673885410908,0.04791543,1549.1,1548.8,22.91705767]
[1673885411705,6.50335543,1549.1,1548.8,9.51923767]
[1673885411707,6.56935543,1549.1,1548.8,9.51923767]
[1673885412325,0.11391543,1549.1,1548.8,22.43245767]
[1673885412539,0.04791543,1549.1,1548.8,22.43245767]
[1673885413762,12.95867543,1549.1,1548.8,9.51923767]
[1673885414089,13.02467543,1549.1,1548.8,9.51923767]
[1673885416102,13.02467543,1549.1,1548.8,6.5226]
[1673885416313,1.30246754,1549.0,1548.8,6.5226]
[1673885416528,13.02467543,1549.1,1548.8,6.5226]
[1673885417299,0.11391543,1549.1,1548.8,12.97921]
[1673885417513,0.11391543,1549.1,1548.8,19.43582]
[1673885417514,0.04791543,1549.1,1548.8,19.43582]
[1673885418203,0.04791543,1549.1,1549.0,19.36731]
[1673885418417,0.04791543,1549.1,1549.0,23.93131]
[1673885418625,0.09960295,1549.2,1549.1,2.0]
[1673885418839,0.09960295,1549.2,1549.1,19.40872]
[1673885419029,0.09960295,1549.2,1549.1,17.47472]
[1673885420087,0.09960295,1549.2,1549.1,23.93008]
[1673885420291,0.09960295,1549.2,1549.1,9.52136]
[1673885420556,0.09960295,1549.2,1549.1,3.066]
[1673885420732,0.09960295,1549.2,1549.1,3.0]
[1673885421586,0.09960295,1549.2,1549.1,9.45536]
[1673885421777,0.09960295,1549.2,1549.1,9.52136]
[1673885422205,0.09960295,1549.2,1549.1,3.066]
[1673885422412,0.09960295,1549.2,1549.1,3.0]
[1673885426811,0.09960295,1549.2,1549.0,39.3926]
[1673885430970,0.10160295,1549.2,1549.0,39.3906]
[1673885431125,0.09960295,1549.2,1549.0,39.3926]
[1673885431334,0.09960295,1549.2,1549.0,39.3426]
[1673885432909,0.09960295,1549.2,1549.1,0.48807443]
[1673885433129,0.09960295,1549.2,1549.1,6.94343443]
[1673885433284,0.09960295,1549.2,1549.1,19.92015443]
[1673885435719,0.09960295,1549.2,1549.1,24.41815443]
[1673885436548,0.09960295,1549.2,1549.1,24.90265443]
[1673885436761,0.09960295,1549.2,1549.1,28.07421743]
[1673885436988,0.09960295,1549.2,1549.1,24.41815443]
[1673885439058,0.09960295,1549.2,1549.1,27.69094121]
[1673885439306,1e-08,1549.2,1549.1,31.57700421]
[1673885439531,1e-08,1549.2,1549.1,33.17903479]
[1673885440132,1e-08,1549.2,1549.1,37.56454205]
[1673885440992,1e-08,1549.2,1549.1,35.16153479]
[1673885441390,0.09959831,1549.3,1549.1,35.16153479]
[1673885441617,0.09959831,1549.3,1549.2,11.49878678]
[1673885441821,0.09959831,1549.3,1549.2,30.92960678]
[1673885443132,0.09959831,1549.3,1549.2,30.87960678]
[1673885443488,0.09959831,1549.3,1549.2,34.53566978]
[1673885443643,0.09959831,1549.3,1549.2,30.87960678]
[1673885443799,0.09959831,1549.3,1549.2,34.53566978]
[1673885444276,8.31e-06,1549.3,1549.2,41.34666978]
[1673885444434,0.10779246,1549.4,1549.3,2.0]
[1673885444633,0.10779246,1549.4,1549.3,39.54000978]
[1673885444846,0.10779246,1549.4,1549.3,42.60600978]
[1673885445405,0.10779246,1549.4,1549.3,53.79010978]
[1673885446053,0.10779246,1549.5,1549.4,21.36233]
[1673885446224,0.10779246,1549.5,1549.4,31.56917978]
[1673885446567,0.10779246,1549.5,1549.4,34.56917978]
[1673885446778,0.10779246,1549.5,1549.4,34.56717978]
[1673885446935,0.10779246,1549.5,1549.4,34.56917978]
[1673885447153,0.10779246,1549.5,1549.4,30.91311678]
[1673885447360,0.10779246,1549.5,1549.4,30.86311678]
[1673885447991,0.10779246,1549.5,1549.4,34.51917978]
[1673885448210,0.10779246,1549.5,1549.4,30.86311678]
[1673885449496,0.10779246,1549.5,1549.4,34.51917978]
[1673885450930,0.10779246,1549.5,1549.4,30.86311678]
[1673885451225,0.05175287,1549.8,1549.5,2.0]
[1673885451444,0.05175287,1549.8,1549.7,27.30944]
[1673885451646,0.05175287,1549.8,1549.7,30.64822678]
[1673885451865,0.05175287,1549.8,1549.7,33.64822678]
[1673885452480,0.05175287,1549.8,1549.7,33.59822678]
[1673885452856,0.05175287,1549.8,1549.7,32.10022678]
[1673885454700,0.05175287,1549.8,1549.7,33.59822678]
[1673885456248,0.05375287,1549.8,1549.7,33.59622678]
[1673885456490,0.05175287,1549.8,1549.7,33.59822678]
[1673885463978,1e-08,1549.8,1549.7,33.59822678]
[1673885464190,1e-08,1549.8,1549.7,33.64822678]
[1673885466127,0.12209731,1549.9,1549.8,21.4191868]
[1673885466340,0.12209731,1549.9,1549.8,24.4851868]
[1673885467965,0.12209731,1549.9,1549.8,22.90804877]
[1673885468912,0.12209731,1549.9,1549.8,0.55072877]
[1673885468913,9.16611731,1549.9,1549.8,0.55072877]
[1673885469126,17.30603319,1549.9,1549.8,0.48472877]
[1673885469343,17.79033319,1549.9,1549.8,0.48472877]
[1673885471678,24.24235319,1549.9,1549.8,0.48472877]
[1673885476082,17.79033319,1549.9,1549.8,0.48472877]
[1673885476258,24.24235319,1549.9,1549.8,0.48472877]
[1673885479450,3.26439731,1549.9,1549.8,0.48472877]
[1673885479659,2.71409731,1549.9,1549.8,0.48472877]
[1673885479918,0.12209731,1549.9,1549.8,0.48472877]
[1673885481025,6.57411731,1549.9,1549.8,0.48472877]
[1673885481220,13.57643731,1549.9,1549.8,0.48472877]
[1673885481438,16.58562219,1549.9,1549.8,0.48472877]
[1673885481626,16.10132219,1549.9,1549.8,0.48472877]
[1673885483238,24.05134219,1549.9,1549.8,0.48472877]
[1673885484065,24.53564219,1549.9,1549.8,0.48472877]
[1673885489406,24.53564219,1549.9,1549.8,0.48216349]
[1673885489985,24.05134219,1549.9,1549.8,0.48216349]
[1673885490149,24.53564219,1549.9,1549.8,0.48216349]
[1673885493401,27.80842897,1549.9,1549.8,0.48216349]
[1673885496765,24.79924409,1549.9,1549.8,0.48216349]
[1673885500369,21.04215731,1549.9,1549.8,0.48216349]
[1673885500525,6.64011731,1549.9,1549.8,0.48216349]
[1673885502208,0.18809731,1549.9,1549.8,0.48216349]
[1673885502472,0.12209731,1549.9,1549.8,0.48216349]
[1673885502800,0.12209731,1549.9,1549.8,6.93460349]
[1673885502935,0.12209731,1549.9,1549.8,7.00060349]
[1673885503391,0.12209731,1549.9,1549.8,13.45304349]
[1673885504210,0.12209731,1549.9,1549.8,19.90548349]
[1673885512028,0.12209731,1549.9,1549.8,22.90548349]
[1673885513233,0.00223582,1549.9,1549.8,22.90339673]
[1673885514292,0.11675151,1550.0,1549.9,4.0602358]
[1673885514504,0.11675151,1550.0,1549.9,24.4162958]
[1673885514722,0.11675151,1550.0,1549.9,24.4822958]
[1673885518747,0.11875151,1550.0,1549.9,24.4802958]
[1673885518960,0.11675151,1550.0,1549.9,24.4822958]
[1673885521297,0.19761304,1550.7,1550.3,6.811]
[1673885521445,0.13970998,1550.8,1550.3,6.811]
[1673885521446,0.13970998,1550.8,1550.5,6.811]
[1673885521654,0.13970998,1550.8,1550.6,26.15833]
[1673885522028,0.13970998,1550.8,1550.7,9.4487]
[1673885522206,0.13970998,1550.8,1550.7,15.9634]
[1673885523479,0.13970998,1550.8,1550.7,6.5147]
[1673885523671,0.13970998,1550.8,1550.7,0.066]
[1673885524240,0.14170998,1550.8,1550.6,6.51306]
[1673885524818,0.13970998,1550.8,1550.6,6.51506]
[1673885525167,0.13970998,1550.8,1550.6,12.96417]
[1673885525172,0.13970998,1550.8,1550.7,3.0]
[1673885525330,0.13970998,1550.8,1550.7,15.8974]
[1673885525657,0.13970998,1550.8,1550.7,15.9634]
[1673885526962,0.13970998,1550.8,1550.7,19.83463118]
[1673885527165,0.13970998,1550.8,1550.7,29.63963118]
[1673885527381,0.007553,1551.2,1550.9,25.79112]
[1673885527605,0.007553,1551.2,1551.1,21.34109]
[1673885527790,0.007553,1551.2,1551.1,21.40709]
[1673885527955,0.007553,1551.2,1551.1,19.40709]
[1673885530092,0.007553,1551.2,1551.1,34.34832118]
[1673885530313,0.13970998,1551.6,1551.1,36.06532118]
[1673885530527,0.13970998,1551.6,1551.3,19.33836]
[1673885530694,0.13970998,1551.6,1551.3,19.40436]
[1673885531791,0.13970998,1551.6,1551.3,12.95824]
[1673885532002,0.13970998,1551.6,1551.3,6.51212]
[1673885532163,0.03970998,1551.6,1551.3,6.51212]
[1673885532959,0.03970998,1551.6,1551.3,12.95832]
[1673885534497,0.03970998,1551.6,1551.3,19.40452]
[1673885535120,0.03970998,1551.6,1551.3,12.95832]
[1673885537250,0.03970998,1551.6,1551.3,19.40452]
[1673885539727,0.03970998,1551.6,1551.3,12.95832]
[1673885539779,2.0,1551.5,1551.3,0.066]
[1673885539800,3.9808,1551.5,1551.2,6.51224]
[1673885539822,3.9808,1551.5,1551.2,0.066]
[1673885539971,3.9808,1551.5,1551.1,6.44701]
[1673885539972,9.94249,1551.5,1551.1,6.51301]
[1673885540173,7.93983,1551.4,1551.1,0.066]
[1673885540383,8.00583,1551.4,1551.0,15.96043]
[1673885540594,1.56,1551.4,1551.0,15.96043]
[1673885540850,8.52439998,1551.6,1551.0,22.40788]
[1673885541016,10.52439998,1551.6,1551.0,33.51958]
[1673885541477,0.58940998,1551.6,1551.1,3.497]
[1673885541721,0.03970998,1551.6,1551.2,19.33923]
[1673885541857,0.03970998,1551.6,1551.2,19.40523]
[1673885543974,0.03970998,1551.6,1551.2,24.54246118]
[1673885544397,0.03970998,1551.6,1551.2,20.90123]
[1673885544836,0.03970998,1551.6,1551.3,2.0]
[1673885545051,0.03970998,1551.6,1551.4,19.33737]
[1673885545257,1e-08,1551.6,1551.4,19.40337]
[1673885547775,1e-08,1551.6,1551.4,6.51179]
[1673885547990,1e-08,1551.6,1551.4,0.066]
[1673885548202,1e-08,1551.6,1551.3,12.9579]
[1673885549503,1e-08,1551.6,1551.3,19.4041]
[1673885551713,1e-08,1551.6,1551.3,6.51192]
[1673885552021,1e-08,1551.6,1551.3,12.95812]
[1673885553112,1e-08,1551.6,1551.3,19.40432]
[1673885554549,0.4837,1551.8,1551.6,0.00199999]
[1673885555256,0.4837,1551.8,1551.6,6.44670999]
[1673885555258,0.4837,1551.8,1551.6,6.51270999]
[1673885556164,0.5496,1551.9,1551.6,19.40262999]
[1673885556315,0.4836,1551.9,1551.6,19.40262999]
[1673885557681,0.4836,1551.9,1551.6,19.35262999]
[1673885558348,22.41647,1552.0,1551.6,19.35262999]
[1673885558349,22.90007,1552.0,1551.6,19.35262999]
[1673885558632,21.41007,1552.0,1551.6,19.35262999]
[1673885558890,13.43667,1552.0,1551.6,19.35262999]
[1673885559271,0.5496,1552.0,1551.6,19.35262999]
[1673885559488,0.4836,1552.0,1551.6,19.35262999]
[1673885560435,30.03119,1552.1,1551.6,19.35262999]
[1673885564217,0.5496,1552.1,1551.6,19.35262999]
[1673885564411,14.71768,1552.2,1551.6,19.35262999]
[1673885564620,16.71768,1552.2,1551.6,19.35262999]
[1673885564886,14.71768,1552.2,1551.6,31.05632999]
[1673885565693,8.2751,1552.2,1551.6,31.05632999]
[1673885565899,7.7916,1552.2,1551.6,31.54002999]
[1673885566105,7.7916,1552.2,1551.7,3.0]
[1673885566466,7.7916,1552.2,1551.8,19.33176]
[1673885566773,7.7916,1552.2,1551.8,19.39776]
[1673885566774,14.23409,1552.2,1551.8,19.39776]
[1673885567372,6.50849,1552.2,1551.8,19.39776]
[1673885567578,6.50849,1552.2,1551.8,19.39576]
[1673885567822,6.50849,1552.2,1551.8,19.39776]
[1673885569401,0.066,1552.2,1551.8,19.39776]
[1673885569998,26.6810403,1552.3,1551.8,20.89476]
[1673885569999,26.2635403,1552.3,1551.8,20.89476]
[1673885570301,9.0051303,1552.3,1551.8,24.53599118]
[1673885570680,9.0051303,1552.3,1551.8,20.89476]
[1673885570987,9.0051303,1552.3,1551.8,21.37846]
[1673885571457,9.0051303,1552.3,1551.8,20.89476]
[1673885571777,7.93669,1552.2,1551.8,0.066]
[1673885571988,8.00269,1552.2,1551.8,6.44411]
[1673885572199,16.44538,1552.2,1551.8,6.51011]
[1673885572627,14.44538,1552.2,1551.8,6.51011]
[1673885574236,16.44538,1552.2,1551.8,6.51011]
[1673885574634,14.44538,1552.2,1551.8,6.51011]
[1673885574877,16.44538,1552.2,1551.8,6.51011]
[1673885575337,14.44538,1552.2,1551.8,6.51011]
[1673885576137,2.0,1552.1,1551.8,6.51011]
[1673885576357,14.44538,1552.2,1551.8,6.51011]
[1673885577875,2.0,1552.1,1551.8,6.51011]
[1673885578099,14.44538,1552.2,1551.8,6.51011]
[1673885578506,14.44538,1552.2,1551.8,6.50754059]
[1673885578925,16.44538,1552.2,1551.8,6.50754059]
[1673885579556,16.44538,1552.2,1551.8,0.066]
[1673885579557,22.8881,1552.2,1551.8,0.066]
[1673885579812,2.0,1552.1,1551.6,18.21434]
[1673885580023,12.88694,1552.0,1551.6,18.21434]
[1673885580243,12.95294,1552.0,1551.6,18.21434]
[1673885580392,19.39644,1552.0,1551.6,18.21434]
[1673885580607,19.39644,1552.0,1551.6,11.7697]
[1673885580928,19.39644,1552.0,1551.6,11.73086036]
[1673885581867,6.50944,1552.0,1551.6,11.73086036]
[1673885582080,0.066,1552.0,1551.7,4.485]
[1673885583731,6.50896,1552.1,1551.7,3.0]
[1673885585582,6.50896,1552.1,1551.7,9.44453]
[1673885585793,6.50896,1552.1,1551.7,9.51053]
[1673885585998,12.95192,1552.1,1551.7,9.51053]
[1673885586440,12.95192,1552.1,1551.7,3.066]
[1673885586655,0.066,1552.1,1551.7,22.33353]
[1673885586883,1.0974303,1552.3,1551.7,23.88853]
[1673885587195,3.0974303,1552.3,1551.7,23.88853]
[1673885587351,3.5809303,1552.3,1551.7,23.88853]
[1673885587561,1.5809303,1552.3,1551.7,22.39953]
[1673885588017,3.2,1552.1,1551.7,22.39953]
[1673885588665,3.2,1552.1,1551.7,15.95499]
[1673885588879,3.6836,1552.1,1551.7,16.43869]
[1673885589053,3.2,1552.1,1551.7,15.95499]
[1673885589474,3.2,1552.1,1551.7,22.39953]
[1673885591913,3.2,1552.1,1551.7,28.01446118]
[1673885592124,3.2,1552.1,1551.9,19.33113]
[1673885592352,3.2,1552.1,1551.9,20.89313]
[1673885592593,3.2,1552.1,1552.0,19.86718]
[1673885592807,3.2,1552.1,1552.0,19.93318]
[1673885593209,3.2,1552.1,1552.0,17.93318]
[1673885594016,3.2,1552.1,1552.0,16.43618]
[1673885594748,3.2,1552.1,1552.0,24.37647]
[1673885595011,3.2,1552.1,1552.0,23.89287]
[1673885595588,1.1634303,1552.3,1552.0,36.31111102]
[1673885595799,1.0974303,1552.3,1552.2,28.74484]
[1673885596008,1.0974303,1552.3,1552.2,40.62184]
[1673885596655,1.0974303,1552.3,1552.2,39.10534]
[1673885597268,0.4325303,1552.3,1552.2,39.10534]
[1673885597478,1e-08,1552.3,1552.2,39.10534]
[1673885597688,1e-08,1552.3,1552.2,46.92954]
[1673885598352,3.20000001,1552.3,1552.2,46.92954]
[1673885598574,3.20000001,1552.3,1552.2,39.10534]
[1673885598790,3.20000001,1552.3,1552.2,38.62184]
[1673885599013,3.20000001,1552.3,1552.2,37.13384]
[1673885599593,3.20000001,1552.3,1552.2,38.61884]
[1673885600051,3.20000001,1552.3,1552.2,38.84884]
[1673885600216,3.20000001,1552.3,1552.2,42.4421825]
[1673885600423,3.20000001,1552.3,1552.2,38.84884]
[1673885601681,3.20000001,1552.3,1552.2,32.03784]
[1673885601953,3.20000001,1552.3,1552.2,22.39338]
[1673885603082,3.20000001,1552.3,1552.2,30.70138]
[1673885603496,3.20000001,1552.3,1552.2,32.19838]
[1673885604038,3.20000001,1552.3,1552.2,36.02206148]
[1673885604377,1e-08,1552.3,1552.2,36.02206148]
[1673885604587,1e-08,1552.3,1552.2,50.49834848]
[1673885605388,0.17413385,1552.4,1552.2,46.904667]
[1673885605604,0.17413385,1552.4,1552.3,15.583]
[1673885605899,0.17413385,1552.4,1552.3,34.97515]
[1673885607298,0.17413385,1552.4,1552.3,39.06527925]
[1673885607512,0.17413385,1552.4,1552.3,35.45865]
[1673885607728,0.17413385,1552.4,1552.3,40.07843426]
[1673885607919,3.385e-05,1552.4,1552.3,40.07843426]
[1673885608795,0.04508143,1552.7,1552.5,6.811]
[1673885608960,0.04508143,1552.7,1552.6,1.726]
[1673885609174,1.43e-06,1552.7,1552.6,30.4892]
[1673885609429,1.43e-06,1552.7,1552.6,37.3662]
[1673885609595,0.17400889,1552.9,1552.6,42.46809598]
[1673885609803,0.17400889,1552.9,1552.8,29.12491]
[1673885610009,0.17400889,1552.9,1552.8,32.19091]
[1673885610496,0.17400889,1552.9,1552.8,38.63088]
[1673885610658,8.89e-06,1552.9,1552.8,42.22891127]
[1673885610885,0.18108749,1553.0,1552.8,42.71231127]
[1673885611217,0.18108749,1553.0,1552.9,25.67412]
[1673885611538,0.18108749,1553.0,1552.9,9.50556]
[1673885611919,0.18108749,1553.0,1552.9,15.94512]
[1673885612577,0.18108749,1553.0,1552.9,24.25312]
[1673885613541,0.18108749,1553.0,1552.9,30.69268]
[1673885613692,0.18108749,1553.0,1552.9,32.18968]
[1673885613898,0.17758641,1553.1,1553.0,2.0]
[1673885614125,0.17758641,1553.1,1553.0,24.6733]
[1673885614370,0.17758641,1553.1,1553.0,27.7393]
[1673885615328,0.17758641,1553.1,1553.0,31.33895295]
[1673885615541,0.17758641,1553.1,1553.0,31.88523682]
[1673885615848,0.17758641,1553.1,1553.0,28.28558387]
[1673885616632,0.17758641,1553.1,1553.0,27.7393]
[1673885617107,0.17758641,1553.1,1553.0,26.2433]
[1673885617299,0.18676208,1553.2,1553.0,31.88550375]
[1673885617492,1e-08,1553.2,1553.1,9.811]
[1673885617693,1e-08,1553.2,1553.1,25.73446]
[1673885618557,1e-08,1553.2,1553.1,29.33692705]
[1673885618767,1e-08,1553.2,1553.1,25.73446]
[1673885619372,0.26031508,1553.7,1553.2,0.00199999]
[1673885619594,0.19431508,1553.7,1553.6,8.3]
[1673885619806,0.19431508,1553.7,1553.6,30.67598]
[1673885620012,0.14431508,1553.7,1553.6,30.67598]
[1673885620833,5.08e-06,1553.7,1553.6,30.67598]
[1673885621096,1.0974303,1553.8,1553.7,8.811]
[1673885621461,0.075,1554.4,1553.9,10.67822379]
[1673885621673,0.045,1554.4,1554.3,2.994]
[1673885621817,8.0718,1555.1,1554.5,19.29831]
[1673885621818,0.5486,1555.1,1554.5,19.29831]
[1673885622031,0.5486,1555.1,1554.7,1.49]
[1673885622032,0.4826,1555.1,1554.7,1.49]
[1673885622306,0.4826,1555.1,1554.8,7.91961]
[1673885622307,0.3326,1555.1,1554.8,7.91961]
[1673885622530,0.0083485,1555.2,1554.9,3.54086987]
[1673885622827,0.066,1555.6,1555.0,29.10358]
[1673885623037,6.42568,1556.3,1555.0,29.10358]
[1673885623038,0.064,1556.1,1555.4,14.0]
[1673885623207,2.4807933,1556.7,1555.7,26.09491]
[1673885623208,8.0747933,1556.7,1555.7,26.09491]
[1673885623424,0.4822,1556.5,1555.8,1.497]
[1673885623784,0.06,1556.9,1556.3,12.85098]
[1673885623921,5.1099164,1557.0,1556.3,19.11240316]
[1673885624131,0.4821,1556.9,1556.3,6.26142316]
[1673885624400,2.994,1556.4,1556.3,0.066]
[1673885624609,0.062,1556.6,1556.3,6.42947]
[1673885624764,5.1099164,1557.0,1556.3,0.066]
[1673885624982,5.0599164,1557.0,1556.2,15.91762]
[1673885625205,0.4821,1556.9,1556.4,2.0]
[1673885625565,2.994,1556.5,1555.7,6.25612111]
[1673885625724,8.0,1556.3,1556.2,0.062]
[1673885625937,8.0,1556.3,1555.6,2.42249572]
[1673885625938,30.33647,1556.3,1555.6,2.42249572]
[1673885626130,8.0,1555.8,1555.3,0.126]
[1673885626341,8.066,1555.8,1555.2,2.454]
[1673885626688,1.497,1555.6,1555.2,2.454]
[1673885626898,1.497,1555.6,1555.1,2.52]
[1673885627130,0.066,1555.7,1555.4,2.393]
[1673885627360,7.91047,1556.1,1555.3,2.459]
[1673885627361,1.55,1556.1,1555.3,2.459]
[1673885627513,3.855,1556.1,1555.4,2.54628387]
[1673885627706,2.371,1555.9,1555.4,2.54628387]
[1673885627911,6.42715,1555.9,1555.3,0.066]
[1673885628170,6.42715,1555.9,1555.2,4.9796]
[1673885628171,6.49315,1555.9,1555.2,4.9796]
[1673885628502,2.23910892,1555.9,1555.2,3.497]
[1673885628648,2.23910892,1555.9,1555.1,2.428]
[1673885628649,1.497,1555.7,1555.1,2.428]
[1673885628861,1.488,1555.5,1555.0,2.428]
[1673885629069,1.497,1555.4,1554.9,2.414]
[1673885629346,1.7358,1555.4,1554.8,2.414]
[1673885629494,1.494,1555.2,1554.7,2.414]
[1673885629705,6.4298,1555.3,1554.6,0.066]
[1673885630073,0.2388,1555.1,1554.4,7.46782346]
[1673885630287,1.497,1555.1,1554.5,6.4329]
[1673885630596,0.4827,1555.0,1554.5,7.9959]
[1673885630752,0.4827,1555.0,1554.5,0.066]
[1673885630961,1.9746,1555.1,1554.5,0.54628387]
[1673885631222,5.00247657,1555.2,1554.5,0.54628387]
[1673885631440,1.496,1555.1,1554.5,0.54628387]
[1673885631745,5.06847657,1555.2,1554.6,9.92935]
[1673885631746,0.066,1555.2,1554.6,9.92935]
[1673885631957,7.98925,1555.4,1554.6,9.99535]
[1673885632147,1.492,1555.3,1554.7,3.0]
[1673885632400,1.492,1555.3,1554.6,0.066]
[1673885632401,1.497,1555.2,1554.6,0.066]
[1673885632541,1.49,1554.8,1554.1,6.06293374]
[1673885632749,17.98744,1555.1,1554.1,2.428]
[1673885633002,1.491,1554.7,1554.2,0.4829]